bitfinex/quotes_ETHUSD_20251215
["timestamp","ask_amount","ask_price","bid_price","bid_amount"]
[1765816269306,10.19876873,3003.1,3001.6,0.4956]
[1765816269614,24.46471273,3003.1,3002.0,3.33106495]
[1765816269942,13.65234845,3003.1,3001.6,0.4956]
[1765816270101,9.10990545,3003.1,3001.6,0.4956]
[1765816270309,0.58047529,3003.0,3002.1,6.76479736]
[1765816270507,0.8928,3003.1,3002.2,0.58047529]
[1765816270721,0.534,3003.1,3002.2,1.07607529]
[1765816271936,4.36023055,3003.1,3002.2,0.58047529]
[1765816272530,4.36023055,3003.1,3002.3,10.48793919]
[1765816272531,0.534,3003.1,3002.3,10.48793919]
[1765816272734,0.534,3003.1,3002.4,1.04879392]
[1765816272939,0.534,3003.1,3003.0,0.488]
[1765816273442,0.534,3003.1,3003.0,0.9836]
[1765816273639,0.534,3003.7,3003.0,0.9836]
[1765816273939,0.534,3003.7,3003.6,0.488]
[1765816274317,0.534,3003.7,3003.6,0.9836]
[1765816274542,0.534,3003.7,3003.6,4.31293812]
[1765816274846,0.534,3003.7,3003.6,5.07717659]
[1765816275051,0.535,3004.1,3003.6,11.73585283]
[1765816275248,0.535,3004.1,3004.0,0.488]
[1765816275662,0.9886,3004.1,3003.6,4.09357659]
[1765816275961,1.0841,3004.1,3003.6,3.32933812]
[1765816276118,7.64625368,3004.1,3003.2,3.32970037]
[1765816276314,0.2492,3004.0,3003.3,3.32962714]
[1765816276537,6.6582329,3003.8,3002.9,3.33006493]
[1765816276714,20.589564,3003.7,3002.8,3.33017825]
[1765816276930,15.384407,3003.5,3002.3,3.82634333]
[1765816277117,15.384407,3003.5,3002.7,3.33028415]
[1765816277444,13.596407,3003.5,3002.3,1.07607529]
[1765816277634,6.229531,3003.3,3002.4,0.44069339]
[1765816277833,6.229531,3003.3,3002.1,0.1988]
[1765816277834,2.92566,3003.2,3002.2,3.33089068]
[1765816278027,23.499657,3003.0,3002.2,3.33089068]
[1765816278343,17.469072,3003.0,3002.3,0.002]
[1765816278545,17.302319,3002.8,3002.3,0.002]
[1765816278844,0.534,3003.1,3002.3,0.4976]
[1765816279212,0.534,3003.1,3002.3,0.002]
[1765816279416,1.0303,3003.1,3002.3,0.002]
[1765816279711,0.534,3003.1,3002.4,0.4956]
[1765816280520,0.534,3003.1,3002.5,6.66111572]
[1765816280725,0.534,3003.1,3002.6,0.71567157]
[1765816281128,0.534,3003.1,3002.6,1.21127157]
[1765816281451,0.534,3003.1,3002.7,0.52890336]
[1765816281652,0.534,3003.6,3002.7,0.4956]
[1765816281852,0.001,3004.1,3002.7,0.4956]
[1765816281853,0.001,3004.1,3002.8,0.58467869]
[1765816282039,0.534,3003.9,3002.8,0.58467869]
[1765816282223,0.534,3003.9,3002.9,0.4956]
[1765816282427,0.6892,3003.9,3003.0,6.66000666]
[1765816282746,0.6892,3003.9,3003.1,0.58047529]
[1765816283053,30.0,3003.7,3002.9,3.33007063]
[1765816283426,0.4963,3003.7,3002.9,3.33007063]
[1765816283626,30.0,3003.7,3002.9,3.33007063]
[1765816283856,0.4963,3003.6,3002.9,3.33010132]
[1765816284056,0.4963,3003.6,3002.9,6.66021554]
[1765816284231,0.4963,3003.6,3002.9,0.68393902]
[1765816284444,3.32944897,3003.5,3002.2,9.99262966]
[1765816284742,0.534,3003.4,3002.3,0.58247529]
[1765816284945,0.534,3003.4,3002.3,1.07807529]
[1765816285325,0.534,3003.4,3002.4,0.4956]
[1765816286441,11.544748,3003.3,3002.5,0.002]
[1765816286644,8.300205,3003.1,3002.5,0.002]
[1765816287150,3.32973763,3003.3,3002.5,0.002]
[1765816287333,6.65947526,3003.3,3002.5,0.002]
[1765816287533,0.534,3003.4,3002.5,0.002]
[1765816287852,0.534,3003.4,3002.5,0.4976]
[1765816288230,0.58047529,3003.3,3002.5,0.002]
[1765816288432,5.690271,3003.2,3002.5,0.002]
[1765816288631,4.313322,3003.1,3002.5,0.002]
[1765816289235,10.00541,3002.9,3002.5,0.002]
[1765816289440,0.534,3002.8,3002.5,0.002]
[1765816289884,0.0505,3002.6,3002.5,0.002]
[1765816290249,0.545,3002.6,3002.5,0.002]
[1765816290844,3.87544694,3002.6,3002.5,0.002]
[1765816291366,0.534,3002.8,3002.5,0.002]
[1765816292487,0.493,3002.6,3002.5,0.002]
[1765816292765,10.33614729,3002.6,3002.5,0.002]
[1765816293057,7.17791423,3002.6,3002.5,0.002]
[1765816293466,4.90580195,3002.6,3002.5,0.002]
[1765816293629,0.405504,3002.3,3001.7,0.002]
[1765816293826,0.405504,3001.5,2999.9,3.33334583]
[1765816294032,0.98597929,3001.3,2999.5,0.6593]
[1765816294451,0.4836,3001.2,2999.8,3.3335348]
[1765816294660,0.03987572,3000.8,2999.9,3.33341957]
[1765816294840,1.1835,3000.7,2999.9,4.00011586]
[1765816295038,0.58047529,3000.5,2999.9,4.00011586]
[1765816295255,0.58047529,3000.6,2999.9,3.33335388]
[1765816295427,0.534,3000.5,3000.0,0.4683]
[1765816295629,0.534,3000.4,3000.0,0.4683]
[1765816295834,0.534,3000.4,3000.1,0.90450983]
[1765816296236,0.534,3000.4,3000.2,0.4683]
[1765816296772,0.19557572,3001.8,3000.3,0.405504]
[1765816296773,0.1557,3001.8,3000.3,0.405504]
[1765816296966,0.4836,3002.5,3000.7,9.99766719]
[1765816297164,0.4836,3002.5,3000.7,6.66511146]
[1765816297165,0.534,3001.7,3000.7,6.66511146]
[1765816297463,0.534,3001.7,3000.8,0.66651115]
[1765816298677,0.52347572,3001.6,3000.7,3.33255573]
[1765816298969,3.33166749,3001.5,3000.3,3.33300003]
[1765816299150,3.37148129,3001.6,3000.4,1.04877529]
[1765816299345,0.534,3001.7,3000.5,0.4683]
[1765816299556,0.534,3001.7,3000.4,0.58047529]
[1765816299772,0.534,3001.7,3000.4,1.63842283]
[1765816299773,0.4836,3001.6,3000.4,1.63842283]
[1765816299985,0.62035101,3001.6,3000.5,0.4683]
[1765816300133,0.534,3001.7,3000.6,0.03332666]
[1765816300333,0.534,3001.7,3000.5,0.4683]
[1765816300573,0.534,3001.7,3000.4,0.58047529]
[1765816300574,0.4836,3001.6,3000.4,0.58047529]
[1765816300737,0.52267572,3001.6,3000.4,1.30512283]
[1765816300938,0.03987572,3001.6,3000.6,6.66533358]
[1765816301254,0.534,3001.7,3000.6,7.13363358]
[1765816301456,0.03987572,3001.4,3000.2,3.33302037]
[1765816301633,0.03987572,3001.4,3000.3,3.33297736]
[1765816301839,0.03987572,3001.4,3000.1,0.191]
[1765816301840,0.03987572,3001.2,3000.5,3.33274259]
[1765816302060,0.534,3001.1,3000.0,0.002]
[1765816302280,0.405504,3001.0,3000.0,0.002]
[1765816302968,0.58047529,3000.7,3000.0,0.002]
[1765816303174,0.03987572,3000.6,3000.0,0.002]
[1765816303382,0.534,3000.5,3000.0,0.002]
[1765816303783,0.4836,3000.4,3000.0,0.002]
[1765816305274,0.534,3000.5,3000.0,0.002]
[1765816305682,0.534,3000.5,3000.1,0.191]
[1765816306044,0.534,3000.5,3000.4,0.4614]
[1765816306245,0.534,3000.5,3000.1,0.191]
[1765816306868,0.534,3000.5,3000.1,0.6593]
[1765816307077,0.534,3000.5,3000.2,6.66622224]
[1765816307280,0.534,3000.5,3000.2,3.33311112]
[1765816307487,0.534,3000.5,3000.0,0.002]
[1765816307488,0.0649,3000.3,3000.0,0.002]
[1765816307653,4.35040567,3000.5,3000.0,0.002]
[1765816307847,0.4836,3000.4,3000.0,0.002]
[1765816308559,0.4836,3000.4,3000.0,3.33531866]
[1765816308759,0.4836,3000.4,3000.0,0.002]
[1765816309076,6.66600006,3000.3,3000.0,0.002]
[1765816309280,0.52347572,3000.4,3000.0,0.002]
[1765816309483,7.189255,3000.4,3000.0,0.002]
[1765816309669,0.405504,3000.2,3000.0,0.002]
[1765816310148,0.889104,3000.1,3000.0,0.002]
[1765816310589,0.4836,3000.1,3000.0,0.002]
[1765816311293,4.93229751,3000.1,3000.0,0.002]
[1765816311494,12.09822601,3000.1,3000.0,0.002]
[1765816311664,24.78201601,3000.1,3000.0,0.002]
[1765816311860,0.98597929,3000.0,2997.8,0.4683]
[1765816312060,0.98597929,3000.0,2996.9,3.87167243]
[1765816312061,30.0,2999.5,2998.0,3.33549572]
[1765816312268,17.2011111,3000.1,2997.7,3.33582493]
[1765816312269,0.405504,2999.1,2997.7,3.33582493]
[1765816312564,0.535,2999.0,2997.2,10.00934205]
[1765816312775,0.405504,2998.9,2997.3,1.04976421]
[1765816312987,0.405504,2998.9,2996.6,6.7604245]
[1765816312988,0.58047529,2998.5,2996.9,3.33678134]
[1765816313287,0.58047529,2998.5,2996.9,6.67356268]
[1765816313288,0.940504,2998.4,2996.9,6.67356268]
[1765816313478,1.424104,2998.4,2996.9,6.67356268]
[1765816313667,0.4836,2998.3,2996.9,3.33678134]
[1765816313865,0.03987572,2998.0,2997.5,0.002]
[1765816314105,0.1569,2997.6,2997.5,0.002]
[1765816314695,1.046004,2997.6,2997.5,0.002]
[1765816315060,4.96248142,2997.6,2997.5,0.002]
[1765816315371,1.22097529,2997.6,2997.5,0.002]
[1765816315576,4.55697742,2997.6,2997.5,0.002]
[1765816316180,4.96248142,2997.6,2997.5,0.002]
[1765816316384,18.28318029,2997.5,2995.6,3.33815619]
[1765816316560,5.12,2997.2,2996.0,6.6755631]
[1765816316761,0.405504,2997.3,2996.0,6.6755631]
[1765816316969,0.889104,2997.3,2996.0,6.6755631]
[1765816317293,0.03987572,2997.2,2996.1,0.71438631]
[1765816317495,0.52347572,2997.2,2996.1,0.90538631]
[1765816317790,0.03987572,2997.2,2996.2,0.4683]
[1765816318203,0.536,2997.4,2996.2,0.4683]
[1765816318502,0.536,2997.4,2996.3,0.405504]
[1765816318695,0.536,2997.4,2996.2,0.4683]
[1765816318996,0.536,2997.4,2996.3,0.87145861]
[1765816319184,0.536,2997.4,2996.5,0.58047529]
[1765816319672,0.536,2997.4,2996.6,0.4683]
[1765816320002,0.156,2998.0,2996.6,0.4683]
[1765816320003,0.536,2997.3,2996.6,0.4683]
[1765816320502,0.536,2997.3,2996.4,6.67467626]
[1765816320678,0.536,2997.3,2996.4,3.33733813]
[1765816320870,0.536,2997.3,2996.1,0.191]
[1765816320871,0.4836,2997.2,2996.1,0.191]
[1765816321198,0.58047529,2997.0,2996.1,0.002]
[1765816321523,0.4836,2997.0,2996.1,0.002]
[1765816322069,0.58047529,2997.1,2996.1,0.6897]
[1765816322310,0.1569,2997.8,2996.7,0.58047529]
[1765816322485,0.536,2997.7,2997.2,0.1882]
[1765816322685,0.536,2997.7,2996.5,0.4995]
[1765816322898,0.4675,2997.6,2996.3,0.4995]
[1765816323099,0.4675,2997.6,2996.4,6.67467626]
[1765816323100,7.13950426,2997.6,2996.4,6.67467626]
[1765816323333,0.537,2997.5,2996.4,3.33733813]
[1765816323629,0.537,2997.5,2996.2,3.33752367]
[1765816323630,1.0045,2997.5,2996.2,3.33752367]
[1765816323834,0.58047529,2997.2,2996.1,0.002]
[1765816323989,0.405504,2997.4,2996.1,0.002]
[1765816323990,0.4667,2997.4,2996.1,0.002]
[1765816324188,0.4667,2997.4,2996.3,3.33744952]
[1765816324189,0.405504,2997.4,2996.3,3.33744952]
[1765816324518,0.537,2997.3,2996.3,10.01234856]
[1765816324733,0.537,2997.3,2996.3,3.33744952]
[1765816324903,0.58047529,2997.6,2996.3,3.33742658]
[1765816325220,0.58047529,2997.1,2996.1,0.002]
[1765816325498,0.58047529,2997.3,2996.1,0.002]
[1765816325710,10.1201,2997.0,2996.1,0.002]
[1765816325871,3.33605696,2997.6,2996.1,0.002]
[1765816325872,3.3356683,2997.9,2996.2,0.4995]
[1765816326079,0.537,2997.8,2996.2,1.07997529]
[1765816326316,1.0045,2997.8,2996.2,1.07997529]
[1765816326477,1.58497529,2997.8,2996.2,1.07997529]
[1765816326840,15.518397,2997.6,2996.1,6.86554317]
[1765816327107,3.424273,2996.9,2996.1,0.002]
[1765816327307,0.58047529,2996.6,2996.1,0.002]
[1765816327478,0.405504,2997.1,2996.1,0.002]
[1765816327678,1.04797529,2997.2,2996.1,0.1902]
[1765816327679,0.4675,2997.2,2996.1,0.1902]
[1765816327875,3.33626209,2997.4,2996.1,0.1902]
[1765816327876,1.00376271,2997.1,2996.1,0.002]
[1765816328304,0.4675,2997.0,2996.1,0.002]
[1765816328676,0.405504,2996.9,2996.1,0.002]
[1765816328877,10.278944,2996.8,2996.1,0.002]
[1765816329087,9.65002678,2996.6,2996.1,0.002]
[1765816329286,0.58047529,2996.5,2996.1,0.002]
[1765816329500,1.0075,2996.5,2996.1,0.002]
[1765816329906,0.4675,2996.4,2996.1,0.002]
[1765816330095,0.54,2996.5,2996.1,0.1902]
[1765816330303,0.54,2996.5,2996.2,0.5328756]
[1765816330633,0.54,2996.5,2996.2,0.4995]
[1765816330903,3.33552673,2998.1,2996.2,0.4995]
[1765816330904,0.6235,2998.0,2996.3,6.7604245]
[1765816331116,0.54,2997.0,2996.5,6.67445352]
[1765816331308,0.54,2997.0,2996.5,10.01168028]
[1765816331484,0.54,2997.0,2996.6,0.4995]
[1765816332108,3.33626661,2998.3,2996.7,6.7604245]
[1765816332398,0.54,2997.5,2996.8,0.58047529]
[1765816332612,0.54,2997.5,2996.9,0.73408998]
[1765816332825,0.001,2998.3,2997.0,0.0333667]
[1765816333148,0.001,2998.3,2997.7,6.7604245]
[1765816333296,0.001,2998.3,2997.8,10.50683871]
[1765816333489,0.001,2998.3,2998.1,6.7604245]
[1765816333689,0.001,2998.3,2998.2,0.67604245]
[1765816333917,0.001,2998.3,2998.2,1.17554245]
[1765816334121,3.840657,3000.1,2998.2,1.17554245]
[1765816334122,0.50737572,3000.5,2998.2,1.75601774]
[1765816334319,0.54,3000.4,2999.4,6.7604245]
[1765816334521,0.54,3000.4,2998.6,0.58047529]
[1765816334522,0.54,3000.4,2999.8,6.7604245]
[1765816334726,0.54,3000.4,3000.3,0.1882]
[1765816334924,0.54,3000.4,2999.1,0.4995]
[1765816335222,3.33300003,3000.3,2999.1,0.4995]
[1765816335423,3.33300003,3000.3,2998.7,0.1882]
[1765816335424,7.13350006,3000.3,2998.7,0.1882]
[1765816335621,3.87290671,3000.4,2999.1,6.66865048]
[1765816335921,0.4675,3000.3,2999.1,3.33431685]
[1765816336121,0.4675,3000.3,2999.1,7.16815048]
[1765816336423,3.87293886,3000.4,2999.2,0.4995]
[1765816336824,0.54,3000.4,2999.2,0.4995]
[1765816337067,3.33300003,3000.3,2999.3,0.71681505]
[1765816337245,3.33300003,3000.3,2999.4,3.33400013]
[1765816337434,0.54,3000.4,2999.4,3.33400013]
[1765816337435,3.87291107,3000.4,2999.4,6.66800026]
[1765816337758,3.87291107,3000.4,2998.7,0.1882]
[1765816337759,0.4675,3000.3,2998.7,0.1882]
[1765816337948,0.4675,3000.3,2999.1,3.33429207]
[1765816338152,0.4675,3000.3,2998.8,0.4995]
[1765816338352,0.54,3000.4,2999.3,6.66821905]
[1765816338730,7.20587276,3000.4,2999.4,0.1882]
[1765816338967,0.54,3000.4,2999.4,0.1882]
[1765816339166,3.87291138,3000.4,2999.4,0.1882]
[1765816339472,0.541,3000.4,2999.5,4.06948088]
[1765816339639,3.87393087,3000.4,2999.5,4.06948088]
[1765816339955,0.541,3000.4,2999.5,7.40336986]
[1765816340130,0.541,3000.4,2999.5,7.90286986]
[1765816340331,0.541,3000.4,2999.6,0.4995]
[1765816340531,0.541,3000.4,2999.7,0.79028699]
[1765816340763,0.541,3000.4,3000.3,0.1882]
[1765816340962,0.541,3000.4,2999.7,0.79028699]
[1765816341161,0.541,3000.4,2999.5,3.33388898]
[1765816341162,3.87393783,3000.4,2999.5,3.33388898]
[1765816341365,3.87393783,3000.4,2999.4,3.52216594]
[1765816341366,7.20687566,3000.4,2999.4,3.52216594]
[1765816341738,7.20687566,3000.4,2999.1,0.1882]
[1765816341739,1.04797529,3000.3,2999.1,0.1882]
[1765816342069,1.04797529,3000.3,2999.3,3.33404136]
[1765816342070,0.58047529,3000.3,2999.3,3.33404136]
[1765816342268,0.58047529,3000.3,2999.2,0.4995]
[1765816342466,1.04797529,3000.3,2999.1,3.52250219]
[1765816342669,1.04797529,3000.3,2999.2,3.33420311]
[1765816342871,0.4675,3000.2,2999.1,0.1882]
[1765816343041,0.4675,3000.2,2998.7,0.1882]
[1765816343242,0.58047529,3000.0,2998.7,0.1882]
[1765816343544,0.58047529,3000.0,2998.3,0.4995]
[1765816343744,0.6255,2999.9,2997.8,6.76687155]
[1765816344086,0.539,2999.8,2998.0,0.69550716]
[1765816344240,10.112945,2999.5,2998.0,0.4995]
[1765816344458,0.405504,2999.5,2998.0,0.4995]
[1765816344660,0.4675,2999.4,2998.0,3.83504678]
[1765816345156,0.405504,2998.9,2997.3,0.1882]
[1765816345356,0.1569,2999.0,2997.4,10.00867353]
[1765816345555,0.4675,2999.4,2997.4,10.00867353]
[1765816345556,0.539,2998.9,2997.5,7.84684684]
[1765816345768,0.539,2998.9,2997.9,6.76687155]
[1765816345967,0.539,2998.9,2998.8,0.1882]
[1765816346369,0.539,2998.9,2998.2,0.1882]
[1765816347088,0.539,2998.9,2998.2,0.6877]
[1765816347286,0.5382,2998.9,2998.3,3.33522329]
[1765816347469,3.87276837,2998.9,2998.3,0.73583493]
[1765816347667,0.5382,2998.9,2998.3,0.73583493]
[1765816348103,0.4675,2998.8,2998.0,0.002]
[1765816348274,3.872756,2998.9,2998.1,3.52361326]
[1765816348461,4.029656,2998.9,2998.1,0.1882]
[1765816348780,4.029656,2998.9,2998.1,3.52364569]
[1765816348992,0.5382,2998.9,2998.3,0.58047529]
[1765816349174,0.5382,2998.9,2998.4,0.4995]
[1765816349376,0.5382,2998.9,2998.6,0.58047529]
[1765816349780,0.5382,2998.9,2998.7,0.4995]
[1765816350000,0.5382,2998.9,2998.6,0.58047529]
[1765816350161,0.5382,2998.9,2998.2,0.35256457]
[1765816350489,0.5382,2998.9,2998.5,0.58047529]
[1765816350789,4.02967705,2998.9,2998.1,0.1882]
[1765816350992,7.3642541,2998.9,2998.0,0.002]
[1765816351192,7.8478541,2998.9,2998.0,0.002]
[1765816351495,0.4836,2998.8,2998.0,0.002]
[1765816351892,19.69044,2998.7,2998.0,0.002]
[1765816352094,15.462167,2998.7,2998.0,0.002]
[1765816352392,13.67517,2998.6,2998.0,0.002]
[1765816352590,0.488,2998.7,2998.0,0.002]
[1765816352789,7.3642541,2998.9,2998.0,0.002]
[1765816353179,0.5382,2998.9,2998.1,0.6954]
[1765816353358,0.5382,2998.9,2998.4,0.58047529]
[1765816353764,0.5382,2998.9,2998.5,0.4984]
[1765816353993,0.5382,2998.9,2998.6,0.4984]
[1765816354359,0.5382,2998.9,2998.2,3.8337228]
[1765816354691,4.02965754,2998.9,2998.0,0.002]
[1765816354895,0.5382,2998.9,2998.2,6.67065761]
[1765816355061,0.5382,2998.9,2998.3,0.73660576]
[1765816355259,0.5382,2998.9,2998.4,3.33511205]
[1765816355465,0.5382,2998.9,2998.5,0.4984]
[1765816355665,0.5382,2998.9,2998.3,4.07180763]
[1765816355894,3.3346672,2998.8,2998.1,0.197]
[1765816356098,3.3346672,2998.8,2998.1,3.33537649]
[1765816356462,4.02970931,2998.9,2998.2,3.33531247]
[1765816356666,7.36431862,2998.9,2998.0,0.002]
[1765816357163,7.85231862,2998.9,2998.0,0.002]
[1765816358011,0.488,2998.8,2998.0,0.002]
[1765816358699,0.03987572,2998.7,2998.0,0.002]
[1765816358897,0.52787572,2998.7,2998.0,0.002]
[1765816359298,0.539,2998.6,2998.0,0.002]
[1765816359523,3.87397902,2998.6,2998.0,0.002]
[1765816359807,7.20895804,2998.6,2998.0,0.002]
[1765816360497,0.539,2998.6,2998.0,0.002]
[1765816360828,0.488,2998.5,2998.0,0.002]
[1765816361621,7.20884749,2998.6,2998.1,0.197]
[1765816361622,0.539,2998.6,2998.1,0.197]
[1765816362802,0.539,2998.6,2998.2,0.4984]
[1765816363520,0.539,2998.6,2998.3,3.33522329]
[1765816363728,0.539,2998.6,2998.4,0.71688782]
[1765816364082,0.539,2998.6,2998.5,0.4984]
[1765816364289,0.03987572,2999.8,2998.5,0.4984]
[1765816364290,3.33356758,2999.8,2998.5,0.4984]
[1765816364622,0.54,2999.7,2998.5,0.4984]
[1765816365026,0.54,2999.7,2999.3,200.0]
[1765816366014,0.54,2999.7,2999.3,203.33409414]
[1765816366194,3.87368101,2999.7,2999.3,200.0]
[1765816366396,0.488,2999.6,2999.3,200.0]
[1765816366915,3.87368813,2999.7,2999.3,200.0]
[1765816367130,7.20737626,2999.7,2999.3,200.0]
[1765816367339,0.488,2999.6,2999.3,200.0]
[1765816367537,0.001,3000.1,2999.4,0.4984]
[1765816367716,0.539,3000.0,2999.5,6.66777796]
[1765816368243,0.539,3000.0,2999.6,0.4984]
[1765816368436,0.539,3000.0,2999.4,3.33395286]
[1765816368617,0.158,2999.9,2999.3,200.0]
[1765816369438,0.646,2999.9,2999.3,200.0]
[1765816369736,3.49147596,2999.9,2999.3,200.0]
[1765816370131,0.158,2999.9,2999.3,203.33408196]
[1765816370329,0.539,3000.0,2999.4,3.20960313]
[1765816370511,0.539,3000.0,2999.4,3.70800313]
[1765816370710,0.158,2999.9,2999.4,3.20960313]
[1765816371042,0.646,2999.9,2999.3,200.0]
[1765816371516,0.646,2999.9,2999.3,203.33407689]
[1765816371721,0.158,2999.9,2999.3,203.33407689]
[1765816372522,0.5382,3000.0,2999.4,0.4984]
[1765816372719,0.5382,3000.0,2999.5,3.20960313]
[1765816372918,0.158,2999.9,2999.3,203.33407689]
[1765816373228,0.158,2999.9,2999.3,203.3340688]
[1765816373632,0.488,2999.8,2999.3,200.0]
[1765816373834,6.6673334,2999.7,2999.3,200.0]
[1765816374242,0.159,2999.9,2999.3,200.0]
[1765816374445,3.33355557,2999.8,2999.3,200.0]
[1765816374658,6.66711114,2999.8,2999.3,200.0]
[1765816374862,0.159,2999.9,2999.3,200.0]
[1765816375048,0.001,2999.9,2999.4,0.4984]
[1765816375360,0.001,2999.9,2999.3,206.66821914]
[1765816375529,0.001,2999.9,2999.4,3.20960313]
[1765816375929,0.001,2999.9,2999.5,3.83228898]
[1765816376160,0.159,2999.9,2999.4,6.54357148]
[1765816376873,0.159,2999.9,2999.4,3.20960313]
[1765816377043,0.159,2999.9,2999.3,200.0]
[1765816377370,0.159,2999.9,2999.4,3.33399505]
[1765816377683,0.159,2999.9,2999.3,200.0]
[1765816377853,3.49253085,2999.9,2999.3,203.33410696]
[1765816378169,3.49247962,2999.9,2999.3,200.0]
[1765816378369,6.998012,2999.8,2999.3,200.0]
[1765816378532,0.4906,2999.8,2999.3,200.0]
[1765816378734,0.4906,2999.7,2999.3,200.0]
[1765816379236,0.58047529,2999.5,2999.3,200.0]
[1765816379460,19.25123301,2999.4,2999.3,200.0]
[1765816379671,10.41588601,2999.4,2999.3,200.0]
[1765816379981,14.24048614,2999.4,2999.3,200.0]
[1765816380563,14.64599014,2999.4,2999.3,200.0]
[1765816381062,35.38945514,2999.4,2999.3,199.9416]
[1765816381265,4.98395114,2999.4,2999.3,199.9416]
[1765816381561,4.40347585,2999.4,2999.3,199.9416]
[1765816382730,4.36360013,2999.4,2999.3,199.9416]
[1765816383367,4.36360013,2999.4,2998.6,0.00669985]
[1765816383368,48.00043366,2999.4,2998.6,0.00669985]
[1765816383541,28.239659,2998.6,2998.0,0.002]
[1765816383742,0.539,2998.5,2998.0,0.002]
[1765816383963,0.539,2998.4,2998.0,0.002]
[1765816384436,0.4727,2998.3,2998.0,0.002]
[1765816385174,0.539,2998.4,2998.0,0.002]
[1765816385545,0.1502,2998.8,2998.1,0.1912]
[1765816385761,0.539,2998.7,2998.0,0.002]
[1765816386137,0.539,2998.7,2998.1,0.1912]
[1765816386351,0.539,2998.7,2998.1,0.6756]
[1765816386552,0.001,2999.8,2998.2,0.4844]
[1765816386756,0.539,2999.7,2998.3,0.405504]
[1765816386962,0.539,2999.7,2998.6,0.58047529]
[1765816387173,0.539,2999.7,2998.7,0.76674512]
[1765816387483,0.539,2999.7,2999.6,0.1912]
[1765816387970,0.539,2999.7,2999.6,0.6756]
[1765816388157,0.539,2999.7,2999.6,3.33377783]
[1765816388358,0.539,2999.7,2999.6,3.81817783]
[1765816389271,0.001,2999.8,2999.6,5.48058659]
[1765816389567,0.001,2999.8,2999.7,1.09821195]
[1765816389770,0.001,2999.8,2999.7,0.58047529]
[1765816390167,0.001,2999.8,2999.7,3.91414199]
[1765816390476,0.001,2999.8,2999.7,4.39854199]
[1765816390653,0.001,2999.8,2999.7,5.27663354]
[1765816392173,0.001,2999.8,2999.5,3.33382103]
[1765816392375,0.001,2999.8,2998.8,0.4844]
[1765816392376,0.001,2999.8,2998.8,0.6756]
[1765816392544,0.001,2999.8,2999.3,3.33409052]
[1765816392744,0.001,2999.8,2999.5,3.33387547]
[1765816392941,0.4727,2999.7,2998.5,3.33498156]
[1765816393144,0.4727,2999.7,2998.4,3.33505854]
[1765816393381,0.001,2999.8,2999.1,3.33430423]
[1765816393544,0.001,2999.8,2998.4,3.33505854]
[1765816393545,0.4727,2999.7,2998.4,3.33507298]
[1765816393946,0.4719,2999.7,2999.0,3.33438008]
[1765816394785,0.4719,2999.7,2998.5,0.58047529]
[1765816394965,0.4719,2999.7,2998.5,1.05857724]
[1765816395164,0.4719,2999.7,2998.4,10.00529708]
[1765816395472,0.4719,2999.7,2998.5,0.4844]
[1765816396446,0.04087572,3000.1,2998.5,0.4844]
[1765816396447,30.0,3000.8,3000.7,180.55609166]
[1765816396649,33.87044468,3000.8,3000.7,180.55609166]
[1765816397083,33.92044468,3000.8,3000.7,165.34620176]
[1765816397385,30.0,3000.3,2998.3,6.67038392]
[1765816397556,0.0433225,2999.4,2998.3,6.67038392]
[1765816397750,0.538,2999.3,2998.3,6.67038392]
[1765816397953,0.538,2999.3,2998.3,10.00560721]
[1765816398160,0.0433225,3000.6,2998.3,11.50968793]
[1765816398361,0.62379779,2999.8,2998.4,0.4844]
[1765816398560,0.62379779,2999.8,2998.4,1.06487529]
[1765816398561,0.0433225,2999.8,2998.4,1.06487529]
[1765816398785,0.538,3000.1,2998.6,0.58047529]
[1765816399083,0.538,3000.1,2998.7,1.39204786]
[1765816399381,0.538,3000.1,2998.7,1.87644786]
[1765816399581,0.538,3000.1,2998.8,0.4844]
[1765816400186,0.538,3000.1,2998.6,0.58047529]
[1765816400187,0.0433225,2999.8,2998.6,0.58047529]
[1765816400759,0.0433225,2999.8,2998.7,10.0043352]
[1765816400957,0.0433225,2999.8,2998.7,6.6695568]
[1765816401795,0.0433225,2999.4,2997.9,3.33559191]
[1765816401995,0.0433225,2999.4,2998.5,3.33497756]
[1765816402218,9.11841629,2999.2,2998.1,3.33543756]
[1765816402495,0.538,2999.1,2998.6,6.66977651]
[1765816402666,0.538,2999.1,2998.2,3.33533453]
[1765816402868,11.540304,2999.0,2998.1,3.33542456]
[1765816403067,10.853279,2999.0,2998.1,3.33542456]
[1765816403269,0.538,2999.0,2998.2,0.4844]
[1765816403484,0.538,2999.0,2998.3,0.03335223]
[1765816403696,0.538,2999.0,2998.2,1.06487529]
[1765816403911,0.538,2999.0,2998.3,1.7933283]
[1765816404059,8.143538,2998.9,2998.1,3.33542456]
[1765816404261,8.143538,2998.9,2998.1,6.67087034]
[1765816404466,8.143538,2998.9,2998.1,3.33542456]
[1765816404672,8.143538,2998.9,2998.0,0.002]
[1765816404673,0.98597929,2998.8,2998.0,0.002]
[1765816404874,28.612122,2998.5,2998.0,0.002]
[1765816405088,0.98597929,2998.6,2998.0,0.002]
[1765816405287,28.979802,2998.5,2998.0,0.002]
[1765816405491,27.809808,2998.5,2998.0,0.002]
[1765816405808,0.05001751,2998.3,2998.0,0.002]
[1765816405959,0.58047529,2998.1,2998.0,0.002]
[1765816406165,30.58047529,2998.1,2998.0,0.002]
[1765816407104,29.94686329,2998.1,2998.0,0.002]